bitfinex/quotes_ETHUSD_20240819
["timestamp","ask_amount","ask_price","bid_price","bid_amount"]
[1724093970029,2.3856,2613.7,2612.9,3.0]
[1724093970030,3.82664,2613.3,2612.9,3.0]
[1724093970509,2.3838,2613.2,2612.9,3.0]
[1724093970750,6.21053,2613.2,2612.9,3.0]
[1724093971123,2.3838,2613.2,2612.9,3.0]
[1724093972810,6.21055,2613.2,2612.8,3.82721]
[1724093973008,6.21055,2613.2,2612.7,11.19744]
[1724093973851,6.21055,2613.2,2612.7,7.37]
[1724093974050,6.10301,2613.1,2612.5,3.82774]
[1724093974343,6.10301,2613.1,2612.6,3.82759]
[1724093974897,3.82702,2613.0,2612.6,3.82759]
[1724093976808,2.276,2613.1,2612.6,3.82752]
[1724093977017,2.276,2613.1,2612.7,3.82737]
[1724093977333,6.10289,2613.1,2612.6,3.82752]
[1724093977692,6.10289,2613.1,2612.6,7.65499]
[1724093977844,2.276,2613.1,2612.7,3.8864973]
[1724093978651,6.10294,2613.1,2612.7,0.0590673]
[1724093978831,7.095915,2613.1,2612.7,0.0590673]
[1724093981475,2.4238,2612.9,2612.7,0.0590673]
[1724093981743,2.4238,2612.9,2612.4,3.82779]
[1724093982041,2.4238,2612.9,2612.6,3.82757]
[1724093982716,2.4238,2612.9,2612.7,0.0593874]
[1724093984305,6.25098,2612.9,2612.7,0.0593874]
[1724093984535,6.25098,2612.9,2612.5,3.82773]
[1724093984736,6.25096,2612.9,2612.8,0.0593874]
[1724093984949,7.3580575,2612.9,2612.3,10.37]
[1724093985289,3.82738,2612.8,2612.3,14.19795]
[1724093985448,3.82738,2612.8,2612.4,0.0593874]
[1724093985743,3.82738,2612.8,2612.4,3.8872074]
[1724093986248,6.25098,2612.9,2612.5,3.82773]
[1724093986752,2.4238,2612.9,2612.6,3.8869474]
[1724093988719,2.4238,2612.9,2612.6,7.7144774]
[1724093988919,2.4238,2612.9,2612.6,7.7144174]
[1724093989338,1.648,2613.2,2612.6,3.8868874]
[1724093989339,6.31793,2613.2,2612.6,3.8868874]
[1724093989531,3.82687,2613.1,2612.7,3.82744]
[1724093989718,3.82687,2613.1,2612.6,5.5348874]
[1724093989719,3.82722,2612.9,2612.6,0.0593874]
[1724093989917,6.31825,2613.0,2612.8,0.05944282]
[1724093990118,3.82731,2612.8,2612.4,3.82783]
[1724093992964,6.31825,2613.0,2612.5,0.05944282]
[1724093993263,6.31825,2613.0,2612.6,3.82753]
[1724093993264,2.4912,2613.0,2612.6,3.82753]
[1724093993560,2.4912,2613.0,2612.6,4.59900428]
[1724093993761,2.4912,2613.0,2612.7,0.05958442]
[1724093995366,6.31823,2613.0,2612.7,0.05958442]
[1724093995570,2.4912,2613.0,2612.7,0.05958442]
[1724093995766,2.4912,2613.0,2612.6,3.82759]
[1724093995975,2.4912,2613.0,2612.8,0.05958442]
[1724093996260,2.4912,2613.0,2612.9,0.05958442]
[1724093996465,6.31822,2613.0,2612.9,0.05958442]
[1724093996687,6.31822,2613.0,2612.6,3.82759]
[1724093996885,6.31822,2613.0,2612.9,0.05958442]
[1724093997060,6.31822,2613.0,2612.6,7.65506]
[1724093997253,2.4912,2613.0,2612.9,0.05958442]
[1724093997475,2.3538,2613.2,2612.9,3.82716]
[1724093997675,5.47438,2613.5,2613.2,3.82671]
[1724093997676,2.3538,2613.5,2613.2,3.82671]
[1724093997891,6.17979,2613.7,2613.2,3.82671]
[1724093998092,3.82614,2613.6,2613.2,3.82671]
[1724093998395,3.82614,2613.6,2613.3,0.05958442]
[1724093998693,3.82614,2613.6,2613.2,3.82671]
[1724093998856,3.82614,2613.6,2613.4,0.05958442]
[1724093999060,3.82614,2613.6,2613.2,3.82671]
[1724093999235,6.17981,2613.7,2613.5,0.05958442]
[1724093999585,6.17981,2613.7,2613.2,3.82659]
[1724093999586,2.3538,2613.7,2613.3,3.82648]
[1724094000084,2.3538,2613.7,2613.4,0.05958442]
[1724094001390,6.17985,2613.7,2613.4,0.05958442]
[1724094001896,3.82586,2613.8,2613.4,0.05958442]
[1724094002193,3.82599,2613.7,2613.4,0.05958442]
[1724094002571,2.4475,2613.9,2613.4,0.05958442]
[1724094002741,0.39959784,2614.9,2613.4,2.52508442]
[1724094002742,2.40594018,2614.3,2613.4,2.52508442]
[1724094002940,6.15634,2614.4,2613.8,3.82574]
[1724094003184,6.15634,2614.4,2613.5,0.63516044]
[1724094003185,3.82535,2614.2,2613.6,7.65206]
[1724094003340,3.82515,2614.3,2613.6,7.65206]
[1724094003341,4.440784,2614.3,2613.6,3.82603]
[1724094003541,3.82533,2614.2,2613.6,7.65205]
[1724094003740,3.82533,2614.2,2613.6,3.82602]
[1724094003997,3.82533,2614.2,2613.6,7.65209]
[1724094004224,3.82533,2614.2,2613.7,0.82872504]
[1724094004514,2.3105,2614.0,2613.5,0.63516044]
[1724094004668,2.3105,2614.0,2613.4,0.05958442]
[1724094004669,3.82578,2613.9,2613.4,0.05958442]
[1724094004867,3.82628,2613.5,2613.4,0.05958442]
[1724094005068,7.65256,2613.5,2613.4,0.05958442]
[1724094005311,3.82628,2613.5,2613.4,0.05958442]
[1724094006395,7.65256,2613.5,2613.4,0.05958442]
[1724094006773,10.08706,2613.5,2613.4,0.05958442]
[1724094008199,14.922046,2613.5,2613.4,0.05958442]
[1724094008408,15.472046,2613.5,2613.4,0.05958442]
[1724094008727,11.645766,2613.5,2613.4,0.05958442]
[1724094009023,11.095766,2613.5,2613.4,0.05958442]
[1724094009369,7.269486,2613.5,2613.4,0.05958442]
[1724094009622,10.08706,2613.5,2613.4,0.05958442]
[1724094009777,6.26078,2613.5,2613.4,0.05958442]
[1724094010121,3.82628,2613.5,2613.4,0.05958442]
[1724094011730,3.82614,2613.6,2613.4,0.05958442]
[1724094011937,3.82621,2613.6,2613.4,0.05958442]
[1724094012231,3.82628,2613.5,2613.4,0.05958442]
[1724094012419,10.00506,2613.5,2613.4,0.05958442]
[1724094012622,14.38134,2613.5,2613.4,0.05958442]
[1724094013140,13.83134,2613.5,2613.4,0.05958442]
[1724094013339,20.22672538,2613.5,2613.4,0.05958442]
[1724094013484,23.03455811,2613.5,2613.4,0.05958442]
[1724094013688,20.22672538,2613.5,2613.4,0.05958442]
[1724094014218,16.40044538,2613.5,2613.4,0.05958442]
[1724094015435,12.57416538,2613.5,2613.4,0.05958442]
[1724094015633,3.8269,2613.1,2612.5,19.53]
[1724094015818,3.8269,2613.1,2612.6,2.19279]
[1724094016021,7.65385,2613.1,2612.6,3.88257699]
[1724094016222,3.8269,2613.1,2612.6,0.05498699]
[1724094016552,4.75976302,2613.5,2612.8,2.331]
[1724094016832,4.75976302,2613.5,2612.9,0.615835]
[1724094016833,3.82666,2613.3,2612.9,0.615835]
[1724094017016,3.82653,2613.4,2612.9,4.442985]
[1724094017224,3.82653,2613.4,2613.0,0.0551532]
[1724094017897,3.82623,2613.6,2613.1,3.82673]
[1724094018097,3.82623,2613.6,2613.2,0.38818832]
[1724094018315,3.82623,2613.6,2613.2,0.44324868]
[1724094018541,8.58407919,2613.8,2613.2,2.80714868]
[1724094018542,3.82593,2613.8,2613.2,2.80714868]
[1724094018838,7.65188,2613.8,2613.3,0.66338787]
[1724094019004,3.82593,2613.8,2613.3,4.48995787]
[1724094019212,3.82593,2613.8,2613.4,0.05496804]
[1724094019604,7.65188,2613.8,2613.4,0.05496804]
[1724094019804,7.65188,2613.8,2613.4,0.78466846]
[1724094020226,3.826,2613.7,2613.4,0.78466846]
[1724094021704,7.65187,2613.8,2613.4,0.78466846]
[1724094022150,3.82603,2613.7,2613.4,0.78466846]
[1724094022646,3.82564,2614.0,2613.5,2.4514]
[1724094022915,3.82564,2614.0,2613.6,0.32360685]
[1724094023070,3.82564,2614.0,2613.6,0.37841485]
[1724094023419,7.65129,2614.0,2613.6,0.37841485]
[1724094023740,3.82564,2614.0,2613.6,0.37841485]
[1724094024280,3.82537,2614.2,2613.6,0.37841485]
[1724094024424,7.65074,2614.2,2613.7,3.82597]
[1724094024748,2.2798,2614.3,2613.8,4.30090416]
[1724094024927,3.82512,2614.3,2613.9,3.82569]
[1724094025367,3.82479,2614.6,2614.1,3.82533]
[1724094025368,3.82475,2614.6,2614.1,3.82533]
[1724094025567,2.40692919,2614.7,2614.2,3.82518]
[1724094025568,3.8246,2614.7,2614.2,3.82518]
[1724094025775,3.8246,2614.7,2614.1,3.82533]
[1724094025776,3.82474,2614.6,2614.1,3.82533]
[1724094026274,3.82474,2614.6,2614.2,0.05463567]
[1724094027203,3.82511,2614.3,2614.2,0.05463567]
[1724094027361,9.93652,2614.3,2614.2,0.05463567]
[1724094027545,3.82528,2614.2,2613.8,7.37]
[1724094027749,3.82511,2614.3,2613.8,11.19582]
[1724094027947,3.82511,2614.3,2613.8,14.48152369]
[1724094028545,3.82511,2614.3,2613.9,3.82569]
[1724094029585,3.82511,2614.3,2613.8,14.48153369]
[1724094029794,3.82526,2614.2,2613.8,14.48153369]
[1724094030195,3.82511,2614.3,2613.8,18.30729369]
[1724094030196,3.82513,2614.3,2613.8,18.30729369]
[1724094030889,6.11123,2614.5,2613.9,5.89155937]
[1724094031052,9.93614,2614.5,2614.0,3.82553]
[1724094031252,3.82497,2614.4,2614.0,3.82553]
[1724094031583,3.82497,2614.4,2613.9,5.89155937]
[1724094031966,3.82497,2614.4,2613.9,9.71715937]
[1724094032180,3.82497,2614.4,2613.9,5.89148937]
[1724094032344,3.82497,2614.4,2613.9,9.71711937]
[1724094033850,3.82497,2614.4,2613.9,5.89148937]
[1724094034091,3.82497,2614.4,2613.9,9.71709937]
[1724094034293,3.82497,2614.4,2614.0,3.82551]
[1724094034451,3.82497,2614.4,2613.9,3.82568]
[1724094034655,3.82519,2614.3,2613.8,11.19579]
[1724094034955,2.4439,2614.2,2613.4,7.37]
[1724094035155,2.4439,2614.2,2613.2,6.15171]
[1724094035156,3.82591,2613.8,2613.3,3.82646]
[1724094035377,2.4579,2614.1,2613.2,6.15171]
[1724094035378,3.82601,2613.7,2613.2,6.15171]
[1724094035704,3.82684,2613.2,2612.6,15.02502]
[1724094036067,3.82684,2613.2,2612.7,3.82745]
[1724094036568,3.82684,2613.2,2612.8,3.82729]
[1724094036784,7.65364,2613.2,2612.7,5.329876]
[1724094036985,3.8268,2613.2,2612.7,5.329876]
[1724094038463,3.8268,2613.2,2612.8,0.05424806]
[1724094038700,3.82658,2613.3,2612.8,3.82729]
[1724094038867,3.82658,2613.3,2612.9,0.05424806]
[1724094039378,3.8263,2613.5,2612.9,3.88135806]
[1724094039707,3.82624,2613.6,2613.0,3.82692]
[1724094039911,3.82624,2613.6,2613.1,3.82679]
[1724094039912,3.82623,2613.6,2613.1,3.82679]
[1724094040073,3.82622,2613.6,2613.1,3.8812204]
[1724094041276,3.82588,2613.8,2613.3,3.82656]
[1724094041478,3.82588,2613.8,2613.4,0.0542973]
[1724094041900,3.826,2613.7,2613.4,0.0542973]
[1724094042700,3.82588,2613.8,2613.3,3.82655]
[1724094042902,3.82588,2613.8,2613.5,0.05427883]
[1724094043104,3.82588,2613.8,2613.3,3.82655]
[1724094043308,7.65182,2613.8,2613.6,0.05427883]
[1724094043462,6.23907,2614.0,2613.3,3.82649]
[1724094043670,2.4134,2614.0,2613.6,3.82601]
[1724094043868,3.82547,2614.1,2613.7,3.82598]
[1724094044114,3.82547,2614.1,2613.6,4.59678688]
[1724094044281,3.82547,2614.1,2613.8,0.05418037]
[1724094044484,3.82547,2614.1,2613.6,3.82613]
[1724094044691,3.82547,2614.1,2613.7,0.05418037]
[1724094045681,3.82526,2614.2,2613.7,3.88017037]
[1724094045887,2.3766,2614.4,2613.9,3.82561]
[1724094045888,6.20159,2614.4,2613.9,3.82561]
[1724094046417,6.20159,2614.4,2614.0,0.05420494]
[1724094046574,6.20159,2614.4,2614.0,0.82476743]
[1724094046776,10.02664,2614.4,2614.0,0.82476743]
[1724094047128,3.82514,2614.3,2614.0,0.82476743]
[1724094047610,6.20159,2614.4,2614.0,0.82476743]
[1724094047909,3.82526,2614.2,2614.0,0.05420494]
[1724094048271,3.82526,2614.2,2613.7,3.82594]
[1724094048474,3.82526,2614.2,2613.8,0.05419879]
[1724094048830,3.82526,2614.2,2613.7,3.82594]
[1724094048967,3.82526,2614.2,2613.9,0.05410651]
[1724094049169,2.3766,2614.4,2613.6,3.82601]
[1724094049402,3.82526,2614.2,2614.0,0.05410651]
[1724094049769,3.82526,2614.2,2613.7,3.82587]
[1724094049964,3.82526,2614.2,2614.1,0.05410651]
[1724094050210,3.82526,2614.2,2613.7,3.82587]
[1724094050372,3.82526,2614.2,2614.1,0.05410651]
[1724094051321,3.82542,2614.1,2613.7,3.82587]
[1724094053005,3.82555,2614.0,2613.4,9.6314]
[1724094053218,6.26247,2613.9,2613.5,3.82627]
[1724094053690,6.26247,2613.9,2613.6,0.05410651]
[1724094054313,2.4367,2613.9,2613.6,0.05410651]
[1724094054630,7.65198,2613.7,2613.6,0.05410651]
[1724094054832,3.82631,2613.5,2613.0,3.82694]
[1724094055193,3.82647,2613.4,2613.0,3.82694]
[1724094055587,3.82631,2613.5,2612.9,11.19714]
[1724094055588,3.82659,2613.3,2612.9,11.19714]
[1724094055988,6.16865,2613.4,2612.9,11.19707]
[1724094056197,3.82667,2613.3,2612.9,7.37]
[1724094056395,3.82675,2613.2,2612.7,3.82734]
[1724094057929,3.82693,2613.1,2612.7,3.82734]
[1724094058092,3.82675,2613.2,2612.7,3.82734]
[1724094058289,3.82675,2613.2,2612.7,4.859728]
[1724094058596,3.82636,2613.5,2613.0,3.82694]
[1724094058798,3.82614,2613.6,2613.1,3.82687]
[1724094059007,6.3138,2613.7,2613.2,3.82664]
[1724094059202,3.82585,2613.8,2613.3,3.82657]
[1724094059629,7.65182,2613.8,2613.3,3.82657]
[1724094059811,3.82599,2613.7,2613.3,3.82657]
[1724094060011,3.82616,2613.6,2613.2,3.8267]
[1724094060196,3.82629,2613.5,2613.1,3.82678]
[1724094061272,3.82603,2613.7,2613.2,3.82662]
[1724094061438,3.82603,2613.7,2613.3,3.8265]
[1724094061643,3.8258,2613.9,2613.0,3.82693]
[1724094061644,3.82614,2613.6,2613.0,3.82693]
[1724094061825,3.82614,2613.6,2612.9,3.82705]
[1724094061826,3.8263,2613.5,2613.1,4.592228]
[1724094062034,3.82644,2613.4,2613.0,3.827]
[1724094062227,3.82629,2613.5,2613.1,3.82685]
[1724094062663,3.82643,2613.4,2613.0,3.827]
[1724094063088,3.82643,2613.4,2612.9,3.82714]
[1724094063229,3.82694,2613.1,2612.7,3.0]
[1724094063431,2.3297,2613.3,2613.0,3.82701]
[1724094063665,6.15629,2613.3,2612.8,3.8273]
[1724094064055,3.82679,2613.2,2612.6,3.82751]
[1724094064255,3.82688,2613.1,2612.7,3.82743]
[1724094064778,3.82704,2613.0,2612.5,0.3833]
[1724094064980,3.82689,2613.1,2612.5,8.51693]
[1724094065331,3.82689,2613.1,2612.7,3.82745]
[1724094066187,6.1564,2613.3,2612.6,3.82759]
[1724094066475,3.82696,2613.1,2612.6,3.82759]
[1724094067588,3.82702,2613.0,2612.6,3.82759]
[1724094067784,3.82702,2613.0,2612.6,3.82753]
[1724094068081,3.82702,2613.0,2612.6,5.416211]
[1724094068308,3.82689,2613.1,2612.6,9.243711]
[1724094068491,3.82689,2613.1,2612.7,0.05133842]
[1724094069281,3.82689,2613.1,2612.7,3.87877842]
[1724094070977,7.65386,2613.1,2612.7,0.05133842]
[1724094071298,3.82714,2613.0,2612.7,0.05133842]
[1724094071484,3.82723,2612.9,2612.5,3.3833]
[1724094071680,3.82731,2612.8,2612.6,0.05146754]
[1724094071913,3.82745,2612.7,2612.6,0.05146754]
[1724094072110,6.07953,2612.8,2612.6,0.05146754]
[1724094072805,3.82745,2612.7,2612.6,0.05146754]
[1724094073385,6.07951,2612.8,2612.6,0.05146754]
[1724094073995,2.2522,2612.8,2612.6,0.05146754]
[1724094074401,13.81871,2611.8,2611.3,1.39256544]
[1724094074640,7.65784,2611.7,2611.6,0.124861]
[1724094074928,14.36916,2611.7,2611.6,0.124861]
[1724094075098,20.030296,2611.7,2611.6,0.124861]
[1724094075438,20.030296,2611.7,2610.1,0.3833]
[1724094075439,3.83084,2610.4,2610.1,0.3833]
[1724094076114,3.83112,2610.2,2609.9,0.3833]
[1724094076695,3.83084,2610.4,2609.9,0.3833]
[1724094077008,3.83084,2610.4,2609.8,0.3833]
[1724094077229,3.831,2610.3,2609.6,3.83186]
[1724094077396,3.83127,2610.1,2609.4,3.83216]
[1724094077799,6.13783,2610.5,2609.2,3.83248]
[1724094077800,3.8317,2609.9,2609.2,3.83248]
[1724094078025,3.8317,2609.9,2609.3,0.383248]
[1724094078229,3.83166,2609.9,2609.3,4.215678]
[1724094078494,3.83133,2610.1,2609.4,3.83228]
[1724094078693,3.83133,2610.1,2609.4,4.6370808]
[1724094079151,3.83144,2610.0,2609.4,4.6370808]
[1724094079815,3.83133,2610.1,2609.4,4.6370808]
[1724094079816,3.83133,2610.1,2609.5,3.83211]
[1724094080028,6.13786,2610.5,2609.6,3.83196]
[1724094080231,3.83107,2610.3,2609.7,0.3833]
[1724094080545,3.83107,2610.3,2609.7,4.72218427]
[1724094080692,3.83107,2610.3,2609.7,0.89033427]
[1724094080897,3.83086,2610.4,2609.7,0.89033427]
[1724094081148,3.83104,2610.3,2609.8,0.50703427]
[1724094081859,4.75093204,2610.4,2609.8,4.33871427]
[1724094081996,3.83086,2610.4,2609.9,3.86813079]
[1724094082196,3.83086,2610.4,2609.9,0.03666079]
[1724094082444,7.66182,2610.4,2609.9,0.03666079]
[1724094082654,3.83086,2610.4,2609.9,0.03666079]
[1724094083242,7.66177,2610.4,2609.9,0.03666079]
[1724094083446,3.83106,2610.3,2609.9,0.03666079]
[1724094084098,3.83113,2610.2,2609.7,4.21514]
[1724094084298,3.83113,2610.2,2610.0,0.03830733]
[1724094084466,3.83113,2610.2,2609.7,4.21514]
[1724094084789,4.89047178,2610.4,2609.8,3.87001733]
[1724094085091,8.72139178,2610.4,2609.8,3.87001733]
[1724094085551,3.83099,2610.3,2609.8,3.87001733]
[1724094087057,4.89045178,2610.4,2609.9,3.83155]
[1724094087259,3.83104,2610.3,2609.8,0.03830733]
[1724094087508,3.83104,2610.3,2609.8,3.86999733]
[1724094087803,3.83104,2610.3,2609.9,0.03835038]
[1724094090312,3.83064,2610.6,2609.9,0.03835038]
[1724094090514,7.79539818,2611.0,2609.7,0.3833]
[1724094090515,3.83033,2610.8,2610.3,3.83086]
[1724094090656,3.83005,2611.0,2610.3,3.83086]
[1724094090862,3.83039,2610.7,2610.4,0.03698593]
[1724094091201,3.83019,2610.9,2610.3,3.83096]
[1724094091367,3.83033,2610.8,2610.5,0.03565224]
[1724094091566,3.83033,2610.8,2610.3,3.83096]
[1724094091792,3.83033,2610.8,2610.6,0.03565224]
[1724094092106,3.83033,2610.8,2610.3,3.83096]
[1724094092261,4.213209,2610.9,2610.7,0.03565224]
[1724094092609,4.213209,2610.9,2610.8,0.0355477]
[1724094092758,7.66036,2610.9,2610.4,3.8308]
[1724094092960,3.83017,2610.9,2610.4,3.8308]
[1724094093260,3.83017,2610.9,2610.5,0.03553541]
[1724094093261,7.66035,2610.9,2610.5,0.03553541]
[1724094093474,3.83017,2610.9,2610.5,0.03553541]
[1724094093797,3.83017,2610.9,2610.5,3.83067]
[1724094093998,3.83017,2610.9,2610.6,0.03553541]
[1724094095033,7.66038,2610.9,2610.6,0.03553541]
[1724094095238,8.043397,2610.9,2610.6,0.03553541]
[1724094095537,4.213187,2610.9,2610.4,3.83082]
[1724094095827,3.83017,2610.9,2610.7,0.03553541]
[1724094096127,7.66093,2610.7,2610.2,3.83107]
[1724094096331,3.83042,2610.7,2610.2,3.83107]
[1724094096627,7.66095,2610.7,2610.2,3.83107]
[1724094096832,3.83042,2610.7,2610.2,3.83104]
[1724094096987,3.83042,2610.7,2610.2,8.083574]
[1724094097326,3.83042,2610.7,2610.3,3.83095]
[1724094098028,3.83054,2610.6,2610.2,0.421504]
[1724094098192,3.83042,2610.7,2610.2,3.83102]
[1724094098394,3.83042,2610.7,2610.3,0.03551696]
[1724094098589,3.83053,2610.6,2610.3,0.03551696]
[1724094098795,3.83053,2610.6,2610.2,3.8311]
[1724094099123,3.83053,2610.6,2610.4,0.03462238]
[1724094099332,3.83053,2610.6,2610.2,3.8311]
[1724094099333,3.83053,2610.6,2610.5,0.03462238]
[1724094099490,7.66106,2610.6,2610.5,0.03462238]
[1724094099696,3.83053,2610.6,2610.2,3.83112]
[1724094099885,7.66119,2610.6,2610.3,0.03459779]
[1724094100084,3.83053,2610.6,2610.1,6.83126]
[1724094100313,3.8307,2610.5,2610.2,0.03366616]
[1724094100588,3.83083,2610.4,2609.9,11.20146]
[1724094101110,3.83083,2610.4,2610.0,0.03367845]
[1724094101578,3.8307,2610.5,2610.0,3.86506845]
[1724094102386,4.5457989,2610.5,2610.0,3.86506845]
[1724094102583,8.3765689,2610.5,2610.0,3.86506845]
[1724094103005,3.83085,2610.4,2610.0,3.86506845]
[1724094103214,3.83085,2610.4,2610.0,0.03367845]
[1724094103786,3.83099,2610.3,2610.0,0.03367845]
[1724094103990,3.83127,2610.1,2610.0,0.03367845]
[1724094104444,3.83142,2610.0,2609.5,6.83208]
[1724094104596,6.2534,2610.2,2609.5,6.83208]
[1724094104597,3.83158,2609.9,2609.5,6.83208]
[1724094104798,3.83158,2609.9,2609.5,3.83208]
[1724094105048,3.83143,2610.0,2609.5,3.83207]
[1724094105192,6.25344,2610.2,2609.6,3.83199]
[1724094105385,6.25344,2610.2,2609.5,3.83207]
[1724094105627,3.83143,2610.0,2609.5,3.83203]
[1724094105951,3.83128,2610.1,2609.6,3.83199]
[1724094106438,3.83143,2610.0,2609.6,3.83199]
[1724094107602,3.83128,2610.1,2609.6,7.66389]
[1724094107808,3.83128,2610.1,2609.7,3.83185]
[1724094108023,3.83128,2610.1,2609.6,4.598369]
[1724094108239,7.66267,2610.1,2609.6,4.598369]
[1724094108393,3.83144,2610.0,2609.6,4.598369]
[1724094108592,3.83144,2610.0,2609.6,3.83198]
[1724094109341,3.83144,2610.0,2609.5,3.83207]
[1724094110448,6.25341,2610.2,2609.7,3.83183]
[1724094110600,10.08464,2610.2,2609.7,3.83183]
[1724094111206,3.83128,2610.1,2609.7,3.83183]
[1724094111505,3.83128,2610.1,2609.6,3.83198]
[1724094111929,3.83143,2610.0,2609.6,3.83198]
[1724094112124,3.83143,2610.0,2609.3,2.4916]
[1724094112125,1.008484,2610.0,2609.3,3.83243]
[1724094112364,3.83209,2609.6,2609.2,3.0]
[1724094112563,3.83187,2609.7,2609.2,6.83251]
[1724094112850,6.24126,2609.8,2609.2,6.83251]
[1724094112851,2.4095,2609.8,2609.2,6.83251]
[1724094113147,3.83154,2610.0,2609.2,6.83251]
[1724094113148,2.4095,2610.1,2609.6,3.83191]
[1724094113359,3.83142,2610.0,2609.6,3.83191]
[1724094113522,6.24078,2610.1,2609.6,7.66382]
[1724094113722,3.83124,2610.2,2609.7,3.83179]
[1724094113723,3.83121,2610.2,2609.7,3.83179]
[1724094113908,3.83134,2610.1,2609.6,7.66384]
[1724094114813,3.83134,2610.1,2609.7,3.83185]
[1724094115622,4.37500603,2610.1,2609.6,3.83199]
[1724094115861,4.37500603,2610.1,2609.5,3.83213]
[1724094115862,3.83157,2609.9,2609.5,3.83214]
[1724094116314,6.27667,2609.9,2609.5,3.83214]
[1724094117146,3.83201,2609.6,2609.2,7.21652]
[1724094117347,4.459467,2609.8,2609.2,7.21652]
[1724094117575,6.27667,2609.9,2609.4,3.83217]
[1724094117784,6.27667,2609.9,2609.5,3.83212]
[1724094117991,3.83144,2610.0,2609.6,3.83195]
[1724094118378,3.83144,2610.0,2609.5,3.83213]
[1724094118537,3.83144,2610.0,2609.5,7.6642]
[1724094118956,3.83144,2610.0,2609.5,3.83207]
[1724094119244,3.83144,2610.0,2609.6,3.83199]
[1724094119585,3.83084,2610.4,2609.6,3.83199]
[1724094119586,2.3113,2610.8,2610.4,3.8307]
[1724094119764,2.3113,2610.8,2609.9,3.83155]
[1724094119765,6.14117,2611.1,2610.6,3.83043]
[1724094119946,6.14117,2611.1,2610.4,3.83075]
[1724094119947,3.83022,2610.9,2610.4,3.83075]
[1724094120350,3.83039,2610.7,2610.3,3.83095]
[1724094120572,0.614117,2611.0,2610.1,0.93269871]
[1724094120573,2.6218087,2611.0,2610.1,4.76395871]
[1724094120879,2.3113,2610.8,2610.2,3.83111]
[1724094121178,2.3113,2610.8,2610.0,3.0]
[1724094121179,3.8309,2610.4,2610.0,3.0]
[1724094121386,3.83083,2610.4,2609.9,3.83155]
[1724094121586,3.83083,2610.4,2609.9,3.83154]
[1724094121876,3.8307,2610.5,2610.0,7.66274]
[1724094122080,3.8307,2610.5,2610.0,3.83134]
[1724094122235,4.444812,2610.6,2610.0,3.83134]
[1724094122236,3.83085,2610.4,2610.0,3.83134]
[1724094122436,8.275462,2610.6,2610.0,3.83129]
[1724094122678,4.444812,2610.6,2610.0,3.83129]
[1724094122894,6.14158,2610.8,2610.3,3.8309]
[1724094123196,2.3113,2610.8,2610.0,0.383129]
[1724094123339,2.3113,2610.8,2609.9,3.83151]
[1724094123340,4.32003135,2610.8,2609.9,3.83151]
[1724094123652,4.32003135,2610.8,2609.7,3.0]
[1724094123653,3.83137,2610.1,2609.7,3.0]
[1724094123856,3.83158,2609.9,2609.2,7.37]
[1724094124061,2.3129,2610.0,2609.6,3.83195]
[1724094124551,6.14432,2610.0,2609.5,3.83214]
[1724094124881,3.83193,2609.7,2609.2,11.20258]
[1724094125080,1.0358807,2609.9,2609.5,3.83211]
[1724094125287,6.14438,2610.0,2609.5,3.83211]
[1724094125493,3.83163,2609.9,2609.4,3.83228]
[1724094125650,5.06841784,2609.9,2609.4,3.83228]
[1724094126595,3.83172,2609.8,2609.3,3.83236]
[1724094126886,3.83212,2609.6,2609.2,7.37]
[1724094127037,6.10565,2609.5,2609.0,3.957721]
[1724094127436,2.2735,2609.5,2609.1,3.83266]
[1724094127695,2.3938,2609.7,2609.0,3.957631]
[1724094127850,3.83202,2609.6,2609.2,3.83257]
[1724094128045,7.17278192,2609.7,2609.2,3.83257]
[1724094128750,2.3938,2609.7,2609.2,4.39088662]
[1724094128952,2.3938,2609.7,2609.3,3.83237]
[1724094129486,2.3938,2609.7,2609.3,3.83239]
[1724094130252,6.22566,2609.7,2609.2,3.83257]
[1724094130464,6.22566,2609.7,2609.2,7.66514]
[1724094130788,2.3938,2609.7,2609.2,0.7790001]
[1724094130939,3.83159,2609.9,2609.4,3.83217]
[1724094131361,3.83201,2609.6,2609.3,0.55837662]
[1724094131596,3.83201,2609.6,2609.1,3.83273]
[1724094131744,3.83201,2609.6,2609.2,3.83257]
[1724094131944,3.83186,2609.7,2609.2,3.83257]
[1724094132266,3.83202,2609.6,2609.1,3.83272]
[1724094132670,3.83202,2609.6,2609.2,3.83257]
[1724094133342,6.22566,2609.7,2609.2,3.83257]
[1724094133682,3.83202,2609.6,2609.2,3.83257]
[1724094133993,3.83186,2609.7,2609.2,3.83251]
[1724094134643,3.83181,2609.8,2609.3,3.83233]
[1724094135491,7.66331,2609.9,2609.3,4.39070662]
[1724094135645,3.83164,2609.9,2609.4,3.83228]
[1724094136378,3.83164,2609.9,2609.4,3.83224]
[1724094136815,3.83172,2609.8,2609.4,3.83224]
[1724094137404,8.11561881,2610.1,2609.6,3.83193]
[1724094137590,4.27888881,2610.3,2609.6,3.83196]
[1724094137925,3.83129,2610.1,2609.5,3.83203]
[1724094138128,3.83148,2610.0,2609.5,3.83203]
[1724094139634,2.4804,2609.9,2609.4,3.83217]
[1724094139808,3.44738588,2609.9,2609.4,3.83217]
[1724094140149,3.83173,2609.8,2609.4,3.83217]
[1724094140301,3.83173,2609.8,2609.3,11.20243]
[1724094141003,3.83194,2609.7,2609.3,7.37]
[1724094141205,4.94304559,2609.7,2609.3,7.37]
[1724094141961,4.94304559,2609.7,2609.2,3.8325]
[1724094142258,2.3134,2609.6,2609.1,3.0]
[1724094142547,2.3134,2609.6,2609.0,19.654861]
[1724094142548,4.87144676,2609.6,2609.0,19.654861]
[1724094142719,4.87144676,2609.6,2609.0,0.124861]